bitfinex/quotes_BTCUSD_20220307
["timestamp","ask_amount","ask_price","bid_price","bid_amount"]
[1646612942948,0.30626554,38329.0,38323.0,0.00026758]
[1646612943151,0.01303,38331.0,38329.0,0.387808]
[1646612943352,0.5,38333.0,38330.0,0.63008065]
[1646612943551,0.5,38333.0,38330.0,0.06035404]
[1646612943790,0.18100514,38338.0,38330.0,0.06035404]
[1646612943992,0.02605,38342.0,38332.0,0.28060006]
[1646612944194,0.5,38342.0,38334.0,0.18559601]
[1646612944392,0.52605,38342.0,38330.0,0.06035404]
[1646612944613,0.52605,38342.0,38328.0,0.05]
[1646612944614,0.52105,38342.0,38328.0,0.05]
[1646612944790,0.52105,38342.0,38328.0,2.17146947]
[1646612944996,0.22401301,38337.0,38328.0,2.35339965]
[1646612945195,0.22401301,38337.0,38328.0,0.05]
[1646612945394,0.30626554,38336.0,38328.0,0.05]
[1646612945593,0.065273,38334.0,38322.0,0.17722446]
[1646612945791,0.30626554,38333.0,38322.0,0.22722446]
[1646612945992,0.30626554,38333.0,38323.0,0.06603972]
[1646612946193,0.19210759,38330.0,38323.0,0.06603972]
[1646612946801,0.30626554,38329.0,38318.0,0.00013505]
[1646612947549,0.1,38330.0,38329.0,0.16142655]
[1646612947945,1.05,38329.0,38323.0,8.6e-07]
[1646612948146,0.15,38327.0,38323.0,8.6e-07]
[1646612948352,0.15,38327.0,38318.0,0.00013505]
[1646612948353,0.21940907,38325.0,38318.0,0.00013505]
[1646612948547,6e-05,38322.0,38318.0,0.00013505]
[1646612948746,0.06093,38321.0,38318.0,0.00013505]
[1646612948944,0.1,38319.0,38318.0,0.00013505]
[1646612949147,1.15104568,38319.0,38318.0,0.00013505]
[1646612949345,0.94378,38319.0,38318.0,0.00013505]
[1646612949549,1.16784315,38319.0,38318.0,0.00013505]
[1646612949746,1.10463983,38319.0,38318.0,0.00013505]
[1646612950245,1.10463983,38319.0,38307.0,0.11286565]
[1646612950246,0.02605,38318.0,38307.0,0.1130001]
[1646612950448,0.087,38317.0,38307.0,0.1130001]
[1646612950645,0.06095,38317.0,38307.0,0.1130001]
[1646612950844,0.187,38317.0,38307.0,0.1130001]
[1646612951045,0.15595,38317.0,38307.0,0.1130001]
[1646612951494,0.15595,38317.0,38314.0,0.16546664]
[1646612951696,0.15595,38317.0,38307.0,0.1630001]
[1646612951899,0.30734342,38316.0,38307.0,0.1630001]
[1646612952295,0.1,38315.0,38312.0,0.00023525]
[1646612952497,0.095,38315.0,38312.0,0.00023525]
[1646612953096,0.095,38315.0,38307.0,0.1630001]
[1646612953097,0.30734342,38314.0,38307.0,0.1630001]
[1646612953296,0.095,38315.0,38307.0,0.1630001]
[1646612953497,0.095,38315.0,38310.0,0.00023526]
[1646612954096,0.095,38315.0,38312.0,0.19880885]
[1646612954495,0.10805,38315.0,38312.0,0.19880885]
[1646612954932,0.10805,38315.0,38309.0,0.00037122]
[1646612955637,0.10805,38315.0,38309.0,0.00013595]
[1646612955837,0.01305,38315.0,38309.0,0.00013595]
[1646612956042,0.0479,38328.0,38313.0,0.15]
[1646612956237,0.0479,38328.0,38312.0,0.02605]
[1646612956238,0.4866,38336.0,38317.0,0.15]
[1646612956443,0.09996817,38334.0,38320.0,0.17605]
[1646612956635,0.00279,38341.0,38323.0,0.02605]
[1646612956837,0.00279,38341.0,38327.0,0.02605]
[1646612957041,0.1011,38354.0,38340.0,0.07091389]
[1646612957042,0.00279,38345.0,38340.0,0.07091389]
[1646612957234,0.00279,38346.0,38342.0,0.387808]
[1646612957434,0.00279,38353.0,38343.0,0.30734342]
[1646612957635,0.00279,38353.0,38344.0,0.387808]
[1646612957835,0.0011,38354.0,38350.0,0.387808]
[1646612958233,0.0011,38354.0,38350.0,0.05]
[1646612958434,0.19328776,38353.0,38350.0,0.05]
[1646612958696,0.19328776,38353.0,38343.0,0.1]
[1646612958891,0.19328776,38353.0,38346.0,0.002]
[1646612959290,0.19328776,38353.0,38346.0,0.05493091]
[1646612959491,0.19328776,38353.0,38347.0,0.2508733]
[1646612959691,0.0011,38354.0,38347.0,0.3008733]
[1646612959892,0.0011,38354.0,38347.0,0.60935488]
[1646612960091,0.0011,38354.0,38348.0,0.301285]
[1646612960295,0.31101367,38372.0,38353.0,1.62946228]
[1646612960495,0.31101367,38372.0,38352.0,0.2]
[1646612960496,0.0022,38376.0,38364.0,1.22946228]
[1646612960697,0.78186,38375.0,38370.0,1.22946228]
[1646612960896,0.0022,38377.0,38372.0,1.2441244]
[1646612961090,0.0022,38377.0,38374.0,0.02605]
[1646612961293,0.0022,38377.0,38375.0,0.0479]
[1646612962550,0.0022,38377.0,38374.0,0.30848158]
[1646612962751,0.0011,38377.0,38375.0,0.12605]
[1646612962954,0.0011,38377.0,38376.0,0.77023958]
[1646612963351,0.0011,38377.0,38376.0,0.73778438]
[1646612963548,0.0011,38377.0,38376.0,0.98111321]
[1646612963753,0.0011,38377.0,38376.0,0.51440158]
[1646612963949,0.0011,38377.0,38376.0,0.20592]
[1646612964149,0.0011,38377.0,38376.0,0.1929]
[1646612964552,0.0011,38377.0,38376.0,0.0929]
[1646612964750,0.0011,38377.0,38376.0,0.35714242]
[1646612965151,0.0011,38377.0,38376.0,0.145]
[1646612965353,0.0022,38392.0,38376.0,0.145]
[1646612965354,0.230343,38402.0,38379.0,1.05]
[1646612965555,0.065172,38406.0,38389.0,0.15]
[1646612965556,0.01669999,38403.0,38389.0,0.15]
[1646612965752,0.01669999,38403.0,38396.0,0.21817788]
[1646612965954,0.01669999,38403.0,38397.0,0.435708]
[1646612966192,0.01669999,38403.0,38397.0,0.79785042]
[1646612966394,0.01669999,38403.0,38397.0,0.485708]
[1646612966801,0.18364452,38399.0,38397.0,0.05]
[1646612966996,0.0011,38399.0,38397.0,0.05]
[1646612967194,0.0011,38399.0,38394.0,0.003]
[1646612967397,0.0011,38399.0,38395.0,0.387808]
[1646612967595,0.0011,38399.0,38395.0,0.65088314]
[1646612967796,0.0011,38399.0,38397.0,0.05399663]
[1646612968195,0.0011,38399.0,38398.0,0.387808]
[1646612969798,9.594e-05,38400.0,38398.0,0.387808]
[1646612969799,0.0011,38418.0,38399.0,1.65707543]
[1646612970048,0.0011,38417.0,38404.0,0.15]
[1646612970343,0.0011,38417.0,38407.0,0.387808]
[1646612970642,0.0011,38417.0,38409.0,0.01191857]
[1646612970842,0.0011,38417.0,38411.0,0.01436421]
[1646612970843,0.18273363,38414.0,38411.0,0.01436421]
[1646612971043,0.18273363,38414.0,38408.0,0.45406712]
[1646612971044,0.18273363,38414.0,38408.0,0.1]
[1646612971348,0.18273363,38414.0,38403.0,0.01301]
[1646612971543,0.18273363,38414.0,38398.0,0.00613446]
[1646612971544,0.31225308,38413.0,38398.0,0.00613446]
[1646612971943,0.19774546,38406.0,38400.0,0.21748728]
[1646612972143,0.30616712,38410.0,38400.0,0.21748728]
[1646612972344,0.1,38416.0,38400.0,0.21748728]
[1646612972546,0.30726712,38417.0,38400.0,0.21748728]
[1646612972547,0.0011,38417.0,38401.0,0.387808]
[1646612972750,0.0011,38417.0,38403.0,1.61727028]
[1646612972944,0.0011,38417.0,38402.0,0.15]
[1646612972945,0.0011,38423.0,38407.0,0.15]
[1646612973143,0.0011,38423.0,38418.0,0.387808]
[1646612973343,0.0011,38423.0,38419.0,0.387808]
[1646612973544,0.0011,38423.0,38420.0,0.387808]
[1646612973790,0.0011,38423.0,38422.0,0.387808]
[1646612973994,0.0022,38427.0,38421.0,0.33476278]
[1646612974189,0.0022,38427.0,38422.0,0.40616712]
[1646612974391,0.0022,38427.0,38423.0,0.30616712]
[1646612974599,0.0022,38427.0,38422.0,0.31743242]
[1646612974996,0.0022,38427.0,38423.0,0.30616712]
[1646612975193,0.0022,38427.0,38424.0,0.1]
[1646612975693,0.0022,38427.0,38422.0,0.01354774]
[1646612975993,0.0022,38427.0,38413.0,0.17826171]
[1646612975994,0.0022,38427.0,38413.0,0.35294275]
[1646612976194,0.0022,38427.0,38419.0,0.01165023]
[1646612976393,0.0022,38427.0,38419.0,0.0251539]
[1646612976394,0.00229191,38427.0,38419.0,0.0251539]
[1646612976597,0.00229191,38427.0,38422.0,0.17219458]
[1646612976793,0.00229191,38427.0,38418.0,0.24066402]
[1646612976995,0.21974372,38427.0,38418.0,0.24066402]
[1646612977294,0.21974372,38427.0,38419.0,0.01114491]
[1646612977295,0.0022,38427.0,38419.0,0.01114491]
[1646612977538,9.584e-05,38424.0,38419.0,0.01360096]
[1646612977736,9.584e-05,38424.0,38420.0,0.00109789]
[1646612978536,0.35967307,38425.0,38420.0,0.00109789]
[1646612978735,9.584e-05,38424.0,38420.0,0.00109789]
[1646612979738,0.35967307,38425.0,38420.0,0.00109789]
[1646612980042,9.584e-05,38424.0,38420.0,0.00109789]
[1646612980440,0.35918977,38425.0,38420.0,0.00109789]
[1646612980641,0.18351548,38425.0,38424.0,0.00034519]
[1646612980837,0.0022,38427.0,38424.0,0.00034519]
[1646612981714,0.15512587,38426.0,38424.0,0.00034519]
[1646612982323,0.20964331,38426.0,38424.0,0.00034519]
[1646612982912,0.15512587,38426.0,38424.0,0.00034519]
[1646612983712,0.73512587,38426.0,38422.0,5.55e-06]
[1646612983913,0.15,38423.0,38422.0,5.55e-06]
[1646612984117,0.15,38423.0,38407.0,0.01301]
[1646612984118,0.07476003,38419.0,38407.0,0.01301]
[1646612984318,0.1979,38419.0,38400.0,0.01330848]
[1646612984513,0.1979,38419.0,38398.0,0.33094766]
[1646612984711,0.1979,38419.0,38400.0,0.5]
[1646612984938,0.1979,38419.0,38407.0,0.26890531]
[1646612984939,0.17930662,38410.0,38407.0,0.26890531]
[1646612985139,0.17930662,38410.0,38402.0,0.21722556]
[1646612985539,0.19885926,38412.0,38402.0,0.21722556]
[1646612986140,0.10608596,38418.0,38407.0,0.24738189]
[1646612986343,0.0479,38418.0,38407.0,0.24738189]
[1646612986541,0.1,38423.0,38407.0,0.29738189]
[1646612986542,0.19105364,38414.0,38407.0,0.29738189]
[1646612986741,0.19105364,38414.0,38408.0,0.21441252]
[1646612987142,0.15,38420.0,38408.0,0.21441252]
[1646612987341,0.17709677,38417.0,38407.0,0.05]
[1646612987842,0.15,38420.0,38409.0,0.26797999]
[1646612988043,9.581e-05,38425.0,38409.0,0.26797999]
[1646612988248,0.1511,38426.0,38410.0,0.30486604]
[1646612988443,0.1511,38426.0,38416.0,0.16953458]
[1646612988444,0.21364632,38424.0,38416.0,0.16953458]
[1646612988690,0.21364632,38424.0,38410.0,0.30486604]
[1646612988987,0.21439087,38419.0,38410.0,0.30486604]
[1646612989707,0.16257392,38418.0,38409.0,0.27097999]
[1646612989888,0.16257392,38418.0,38409.0,0.003]
[1646612990091,0.21047392,38418.0,38409.0,0.003]
[1646612990288,0.21047392,38418.0,38408.0,0.01301]
[1646612990289,0.46047392,38418.0,38408.0,0.01301]
[1646612990486,0.20527838,38411.0,38408.0,0.01301]
[1646612990689,0.17056499,38410.0,38408.0,0.01301]
[1646612991289,0.16814591,38410.0,38408.0,0.01301]
[1646612992736,0.16814591,38410.0,38404.0,0.34236553]
[1646612992936,0.30486604,38417.0,38404.0,0.34236553]
[1646612993137,0.35276604,38417.0,38404.0,0.34236553]
[1646612993538,0.36577604,38417.0,38404.0,0.34236553]
[1646612994038,0.06091,38417.0,38404.0,0.34236553]
[1646612994239,0.01301,38424.0,38406.0,0.02605]
[1646612994537,9.558e-05,38425.0,38406.0,0.02605]
[1646612994736,9.558e-05,38425.0,38407.0,0.01301]
[1646612994939,0.27608778,38425.0,38410.0,0.26462829]
[1646612995137,0.17722311,38417.0,38406.0,0.31787604]
[1646612995339,0.17722311,38417.0,38409.0,0.00039025]
[1646612995340,0.23717559,38417.0,38409.0,0.00039025]
[1646612995641,0.15,38417.0,38409.0,0.00039025]
[1646612995837,0.0379,38416.0,38409.0,0.00039025]
[1646612996038,0.2082756,38414.0,38409.0,0.00039025]
[1646612996489,0.06262916,38413.0,38409.0,0.00039025]
[1646612996690,0.19288663,38412.0,38409.0,0.00039025]
[1646612996928,0.24078663,38412.0,38409.0,0.00039025]
[1646612998492,0.0479,38412.0,38409.0,0.00039025]
[1646612999292,0.04082059,38412.0,38409.0,0.00039025]
[1646612999495,0.65,38411.0,38398.0,1.06999058]
[1646612999694,0.65,38411.0,38398.0,0.76512454]
[1646613000145,0.04082059,38412.0,38399.0,0.30486604]
[1646613000342,0.17854098,38405.0,38399.0,0.30486604]
[1646613000541,0.04082059,38412.0,38411.0,0.00039001]
[1646613001841,0.34594359,38412.0,38411.0,0.00039001]
[1646613002242,0.04082059,38412.0,38411.0,0.00039001]
[1646613003339,0.21081874,38412.0,38411.0,0.00039001]
[1646613003542,0.51594174,38412.0,38411.0,0.00039001]
[1646613003988,0.51594174,38412.0,38411.0,1.001e-05]
[1646613003989,0.57610142,38412.0,38411.0,1.001e-05]
[1646613004191,0.76594174,38412.0,38411.0,1.001e-05]
[1646613004392,0.77895174,38412.0,38402.0,0.5]
[1646613004601,0.15,38407.0,38402.0,0.5]
[1646613004790,0.28373267,38403.0,38402.0,0.5]
[1646613004989,0.33163267,38403.0,38402.0,0.5]
[1646613005197,0.33163267,38403.0,38384.0,0.5]
[1646613005198,1.02675567,38403.0,38384.0,0.5]
[1646613005395,1.02675567,38403.0,38376.0,1.2841]
[1646613005396,0.1,38402.0,38393.0,0.00253676]
[1646613005591,0.15,38400.0,38393.0,0.00253676]
[1646613005790,0.15,38400.0,38376.0,0.6863]
[1646613005791,0.353023,38399.0,38376.0,0.53912265]
[1646613005990,0.16252188,38390.0,38376.0,0.54011022]
[1646613006193,0.18596963,38387.0,38380.0,0.18302491]
[1646613006392,0.16252188,38390.0,38380.0,0.18302491]
[1646613006591,0.21042188,38390.0,38380.0,0.18302491]
[1646613007442,0.21042188,38390.0,38379.0,0.004]
[1646613007443,0.0479,38390.0,38388.0,0.1915758]
[1646613008239,0.0479,38390.0,38389.0,0.25235792]
[1646613008439,0.17433969,38398.0,38389.0,0.25235792]
[1646613008440,0.0479,38396.0,38389.0,0.25235792]
[1646613008646,0.0479,38396.0,38394.0,0.1946611]
[1646613008841,0.46422,38408.0,38395.0,0.69650702]
[1646613009041,0.06806723,38398.0,38395.0,0.33474902]
[1646613009243,0.06806723,38398.0,38396.0,0.12605]
[1646613009441,0.06806723,38398.0,38397.0,0.69650702]
[1646613009841,0.06806723,38398.0,38397.0,0.40869902]
[1646613010145,0.06806723,38398.0,38394.0,0.1946611]
[1646613010146,0.06806723,38398.0,38395.0,0.52133474]
[1646613010342,0.06806723,38398.0,38396.0,0.1]
[1646613011194,0.06806723,38398.0,38397.0,0.30869902]
[1646613011388,0.06806723,38398.0,38396.0,0.1]
[1646613011589,0.06806723,38398.0,38395.0,0.62552608]
[1646613011790,0.06306723,38398.0,38395.0,0.62552608]
[1646613012189,0.06306723,38398.0,38395.0,0.62152608]
[1646613012891,0.06806723,38402.0,38395.0,0.62152608]
[1646613012892,0.06806723,38402.0,38398.0,0.18920169]
[1646613013194,1.0863,38420.0,38399.0,0.33383848]
[1646613013391,0.17623031,38416.0,38408.0,0.23366464]
[1646613013790,0.17623031,38416.0,38411.0,0.15728992]
[1646613013993,0.01301,38419.0,38411.0,0.15728992]
[1646613014192,0.01301,38419.0,38412.0,0.30693236]
[1646613014397,9.556e-05,38425.0,38413.0,0.13778884]
[1646613014591,0.0011,38426.0,38415.0,0.02605]
[1646613014791,0.0011,38426.0,38415.0,0.1]
[1646613015046,0.0011,38426.0,38418.0,0.18728335]
[1646613015252,9.56e-05,38425.0,38419.0,0.30693236]
[1646613015447,9.56e-05,38425.0,38418.0,0.18728335]
[1646613015646,9.56e-05,38425.0,38418.0,0.18639412]
[1646613015849,0.0011,38426.0,38420.0,0.387808]
[1646613016046,0.0044,38429.0,38423.0,0.8]
[1646613016047,0.0022,38428.0,38423.0,0.8]
[1646613016252,0.0022,38430.0,38424.0,1.69474036]
[1646613016253,8.943e-05,38425.0,38424.0,1.69474036]
[1646613016447,8.943e-05,38425.0,38424.0,1.69500064]
[1646613016646,8.943e-05,38425.0,38424.0,1.72105064]
[1646613017047,0.00486289,38436.0,38431.0,0.21658938]
[1646613017249,0.0033,38442.0,38438.0,0.21755193]
[1646613017448,0.0033,38442.0,38439.0,0.387808]
[1646613017848,0.0033,38442.0,38437.0,0.387808]
[1646613018046,0.0033,38442.0,38436.0,0.1]
[1646613018047,0.00157039,38442.0,38436.0,0.1]
[1646613018451,0.20446509,38442.0,38436.0,0.1]
[1646613018693,0.18507374,38441.0,38434.0,0.1]
[1646613019094,0.00157039,38442.0,38434.0,0.43298236]
[1646613019298,0.00157039,38442.0,38434.0,0.40693236]
[1646613019500,0.00157039,38442.0,38434.0,0.1]
[1646613019696,0.00157039,38442.0,38434.0,0.43298236]
[1646613019898,9.594e-05,38440.0,38434.0,0.43298236]
[1646613020096,0.04041176,38446.0,38436.0,0.02605]
[1646613020097,0.19087499,38444.0,38436.0,0.02605]
[1646613020296,0.19087499,38444.0,38440.0,0.2612419]
[1646613020696,0.19087499,38444.0,38438.0,0.1]
[1646613021695,0.19087499,38444.0,38438.0,0.37330189]
[1646613021896,0.03329437,38446.0,38438.0,0.27330189]
[1646613022296,0.03329437,38446.0,38438.0,0.32330189]
[1646613022541,0.03329437,38446.0,38438.0,0.63023425]
[1646613022944,0.06274755,38442.0,38438.0,0.05]
[1646613023139,0.30693236,38441.0,38435.0,0.003]
[1646613023338,0.21959447,38446.0,38435.0,0.003]
[1646613023339,0.30693236,38445.0,38435.0,0.003]
[1646613023643,0.21959447,38446.0,38435.0,0.003]
[1646613023943,0.03329437,38446.0,38440.0,0.16854979]
[1646613024339,0.04377437,38446.0,38440.0,0.16854979]
[1646613024539,0.04377437,38446.0,38436.0,0.28346921]
[1646613024740,0.20616158,38443.0,38440.0,0.00036723]
[1646613024940,9.594e-05,38445.0,38440.0,0.00036723]
[1646613025538,0.03329437,38446.0,38440.0,0.00036723]
[1646613025539,0.03329437,38446.0,38440.0,0.18234859]
[1646613025742,0.03329437,38446.0,38441.0,0.30693236]
[1646613025743,9.594e-05,38444.0,38441.0,0.30693236]
[1646613025942,9.594e-05,38444.0,38441.0,0.33298236]
[1646613026513,9.594e-05,38444.0,38442.0,0.24153248]
[1646613026707,0.03329437,38446.0,38442.0,0.26548248]
[1646613027207,9.594e-05,38444.0,38442.0,0.26548248]
[1646613027408,9.594e-05,38444.0,38442.0,0.05]
[1646613027808,9.594e-05,38444.0,38440.0,0.23234859]
[1646613028008,0.03329437,38446.0,38441.0,0.02605]
[1646613028210,9.594e-05,38445.0,38441.0,0.12605]
[1646613028410,9.594e-05,38445.0,38442.0,0.31936397]
[1646613028611,9.594e-05,38445.0,38442.0,0.28286554]
[1646613028813,9.594e-05,38445.0,38442.0,0.33286554]
[1646613029211,0.03329437,38446.0,38442.0,0.35891554]
[1646613029412,0.03329437,38446.0,38443.0,0.01392232]
[1646613029413,9.542e-05,38445.0,38443.0,0.01392232]
[1646613029612,9.542e-05,38445.0,38442.0,0.33286554]
[1646613029813,9.542e-05,38445.0,38443.0,0.1]
[1646613030057,9.542e-05,38445.0,38440.0,0.00036723]
[1646613030259,0.02338979,38446.0,38440.0,0.00036723]
[1646613030453,0.05634029,38443.0,38442.0,0.0001801]
[1646613030652,0.01048,38443.0,38442.0,0.0001801]
[1646613030851,0.3816392,38443.0,38442.0,0.0001801]
[1646613031250,0.3711592,38443.0,38442.0,0.0001801]
[1646613031654,0.3704662,38443.0,38442.0,0.0001801]
[1646613033898,0.67739856,38443.0,38442.0,0.0001801]
[1646613034297,0.77739856,38443.0,38442.0,0.0001801]
[1646613034494,0.4704662,38443.0,38442.0,0.0001801]
[1646613034691,0.5183662,38443.0,38442.0,0.0001801]
[1646613035090,0.5183662,38443.0,38442.0,0.0003669]
[1646613035291,0.20886291,38436.0,38431.0,0.30229926]
[1646613035493,0.04848526,38446.0,38431.0,0.35693236]
[1646613035695,0.04848526,38446.0,38432.0,0.1]
[1646613035696,0.02348526,38446.0,38432.0,0.1]
[1646613035891,0.02348526,38446.0,38433.0,0.30693236]
[1646613036291,0.02348526,38446.0,38435.0,0.02605]
[1646613036492,0.37223603,38441.0,38436.0,0.28493161]
[1646613036696,0.37223603,38441.0,38431.0,0.01299]
[1646613037092,0.37223603,38441.0,38431.0,0.01599]
[1646613037538,0.37223603,38441.0,38431.0,0.003]
[1646613037739,0.02338979,38446.0,38433.0,0.02605]
[1646613037940,0.00033569,38444.0,38435.0,0.02605]
[1646613038139,0.00033569,38444.0,38435.0,1.12958236]
[1646613038340,0.00033569,38444.0,38437.0,0.82265]
[1646613038644,0.00033569,38444.0,38441.0,0.82265]
[1646613038842,0.02338979,38446.0,38443.0,0.413858]
[1646613039040,0.02338979,38446.0,38444.0,0.33298236]
[1646613039246,0.0022,38454.0,38450.0,0.8]
[1646613039442,0.0022,38454.0,38452.0,0.02605]
[1646613039643,0.0022,38454.0,38453.0,0.413858]
[1646613039841,0.0011,38457.0,38454.0,1.07605]
[1646613040043,0.0011,38457.0,38455.0,0.93298236]
[1646613040241,0.0011,38457.0,38456.0,0.487808]
[1646613040449,0.0001,38457.0,38456.0,0.43298236]
[1646613040642,0.0001,38457.0,38456.0,0.1]
[1646613040846,0.025,38477.0,38457.0,1.594408]
[1646613041047,0.183744,38480.0,38460.0,0.387808]
[1646613041314,0.183744,38480.0,38464.0,0.02605]
[1646613041516,0.183744,38480.0,38468.0,0.83750952]
[1646613041713,0.00036627,38474.0,38473.0,0.04348311]
[1646613041918,0.00036627,38474.0,38473.0,0.32436547]
[1646613042114,0.00036627,38474.0,38471.0,0.0892257]
[1646613042115,0.15423272,38475.0,38471.0,0.4892257]
[1646613042315,0.183744,38480.0,38471.0,0.4892257]
[1646613042316,0.183744,38480.0,38473.0,0.02605]
[1646613042615,0.183744,38480.0,38473.0,0.01104218]
[1646613042813,0.183744,38480.0,38473.0,0.31797454]
[1646613043214,0.183744,38480.0,38474.0,0.1870581]
[1646613043523,0.0022,38485.0,38474.0,0.1870581]
[1646613043524,0.00017318,38490.0,38478.0,0.01120041]
[1646613043718,0.00017318,38490.0,38479.0,1.408358]
[1646613043915,0.00017318,38490.0,38482.0,0.01545482]
[1646613044118,0.00017318,38490.0,38483.0,0.07395]
[1646613044317,0.00017318,38490.0,38486.0,0.40275326]
[1646613044518,0.18587415,38492.0,38487.0,0.35424358]
[1646613044714,0.18587415,38492.0,38488.0,0.1]
[1646613044945,0.0011,38497.0,38490.0,0.01494729]
[1646613045146,0.0011,38497.0,38490.0,0.32129087]
[1646613045346,0.1,38513.0,38497.0,0.02605]
[1646613045347,0.091,38513.0,38497.0,0.02605]
[1646613045553,0.0011,38517.0,38497.0,0.02605]
[1646613045554,0.0011,38517.0,38511.0,1.06596044]
[1646613045748,0.009254,38535.0,38515.0,0.01306816]
[1646613045948,0.009254,38535.0,38511.0,0.05]
[1646613045949,1.05,38519.0,38511.0,0.05]
[1646613046249,1.05,38519.0,38505.0,0.14490703]
[1646613046250,0.17011982,38508.0,38505.0,0.05]
[1646613046446,0.17011982,38508.0,38499.0,0.05]
[1646613046647,0.17011982,38508.0,38500.0,0.1]
[1646613046848,9.137e-05,38520.0,38501.0,0.2334903]
[1646613047051,9.137e-05,38520.0,38502.0,0.32010423]
[1646613047249,9.137e-05,38520.0,38503.0,0.12858856]
[1646613047447,0.00024289,38522.0,38504.0,0.30634358]
[1646613047648,0.00024289,38522.0,38504.0,0.35634358]
[1646613047848,0.025,38530.0,38504.0,0.35634358]
[1646613047849,0.18947941,38512.0,38505.0,0.31380822]
[1646613048047,0.18947941,38512.0,38505.0,0.1]
[1646613048247,0.18947941,38512.0,38506.0,0.30634358]
[1646613048447,0.18947941,38512.0,38506.0,0.36920708]
[1646613048448,0.17947941,38512.0,38506.0,0.36920708]
[1646613048702,0.17947941,38512.0,38507.0,0.1]
[1646613048904,9.754e-05,38511.0,38507.0,0.1]
[1646613049102,0.18526524,38511.0,38506.0,0.3443679]
[1646613049302,9.754e-05,38511.0,38506.0,0.52688463]
[1646613049904,0.17947941,38512.0,38508.0,0.01540029]
[1646613050212,0.4623,38526.0,38510.0,0.02860182]
[1646613050506,0.4897,38533.0,38518.0,0.00019078]
[1646613050507,0.025,38533.0,38518.0,0.00019078]
[1646613050710,0.0011,38536.0,38525.0,0.00280967]
[1646613050908,0.03412908,38540.0,38526.0,0.00280967]
[1646613050909,0.03132908,38540.0,38526.0,0.00280967]
[1646613051107,0.20815693,38536.0,38525.0,0.00280967]
[1646613051306,9.047e-05,38526.0,38525.0,0.00280967]
[1646613051521,9.047e-05,38526.0,38525.0,0.36376215]
[1646613051707,9.047e-05,38526.0,38525.0,0.4034223]
[1646613051911,9.047e-05,38526.0,38524.0,0.06165976]
[1646613052107,9.047e-05,38526.0,38523.0,0.3034223]
[1646613052310,0.15,38539.0,38524.0,0.01347556]
[1646613052542,9.121e-05,38527.0,38524.0,0.3034223]
[1646613052741,9.121e-05,38527.0,38526.0,0.05]
[1646613052944,9.121e-05,38527.0,38522.0,0.01747607]
[1646613053142,9.121e-05,38527.0,38522.0,0.1]
[1646613053342,0.145,38539.0,38523.0,0.3034223]
[1646613053542,0.145,38539.0,38528.0,0.2628853]
[1646613053746,0.00036479,38532.0,38528.0,0.2628853]
[1646613054043,0.00036479,38532.0,38529.0,0.6912303]
[1646613054346,0.00036479,38532.0,38530.0,0.06795537]
[1646613054544,0.03132908,38540.0,38531.0,0.387808]
[1646613054743,0.03132908,38540.0,38536.0,0.005]
[1646613054947,0.03132908,38540.0,38538.0,0.26060059]
[1646613055143,0.03132908,38540.0,38538.0,0.31060059]
[1646613055452,0.0011,38549.0,38540.0,0.95]
[1646613055645,0.0011,38549.0,38543.0,0.00032874]
[1646613055846,0.0011,38549.0,38541.0,0.6912303]
[1646613055847,0.0011,38549.0,38544.0,0.00032874]
[1646613056203,0.20828896,38548.0,38539.0,0.01297]
[1646613056408,9.817e-05,38546.0,38536.0,0.04999]
[1646613056802,0.06062582,38545.0,38536.0,0.04999]
[1646613057005,0.06062582,38545.0,38527.0,0.00038556]
[1646613057006,0.24361379,38532.0,38527.0,0.00038556]
[1646613057203,0.16629888,38530.0,38527.0,0.00038556]
[1646613057402,0.3034223,38529.0,38527.0,0.00038556]
[1646613057605,0.19412817,38529.0,38527.0,0.00038556]
[1646613057801,1.21494,38537.0,38527.0,0.00038556]
[1646613057802,0.4919,38536.0,38527.0,0.00038556]
[1646613058203,0.4919,38536.0,38528.0,0.23879474]
[1646613058402,0.76249004,38544.0,38528.0,0.23879474]
[1646613058603,9.121e-05,38533.0,38528.0,0.23879474]
[1646613058804,9.121e-05,38533.0,38527.0,0.00038556]
[1646613058805,0.21824394,38529.0,38527.0,0.00038556]
[1646613059003,9.121e-05,38533.0,38527.0,0.00038556]
[1646613059408,0.26269004,38544.0,38527.0,0.00038556]
[1646613059603,0.39647126,38549.0,38527.0,0.00038556]
[1646613059803,0.39647126,38549.0,38528.0,0.00032874]
[1646613059804,9.903e-05,38532.0,38528.0,0.00032874]
[1646613060045,9.903e-05,38532.0,38531.0,0.38813674]
[1646613060250,9.903e-05,38532.0,38531.0,0.78934954]
[1646613060442,9.903e-05,38532.0,38531.0,0.46451154]
[1646613060643,0.00039608,38538.0,38531.0,0.46451154]
[1646613060847,0.00039608,38538.0,38532.0,0.11297]
[1646613060848,0.15583957,38538.0,38532.0,0.11297]
[1646613061046,0.00039608,38539.0,38536.0,0.00032874]
[1646613061244,0.00039608,38539.0,38534.0,0.11297]
[1646613061445,0.00039608,38539.0,38534.0,0.15]
[1646613061846,0.21287594,38546.0,38534.0,0.15]
[1646613062045,0.16435102,38540.0,38537.0,0.22205952]
[1646613062249,9.903e-05,38538.0,38536.0,0.01438361]
[1646613062447,9.903e-05,38538.0,38537.0,0.437808]
[1646613062651,9.903e-05,38538.0,38537.0,0.387808]
[1646613062854,9.903e-05,38538.0,38533.0,0.06297]
[1646613063052,0.3023128,38549.0,38529.0,9e-05]
[1646613063252,0.26490296,38542.0,38531.0,0.002]
[1646613063452,9.903e-05,38539.0,38531.0,0.002]
[1646613063899,0.16352201,38535.0,38531.0,0.002]
[1646613064098,9.903e-05,38539.0,38531.0,0.002]
[1646613064298,0.10608791,38548.0,38529.0,0.3013028]
[1646613064502,0.00608791,38548.0,38529.0,0.3013028]
[1646613064697,9.719e-05,38537.0,38529.0,0.3013028]
[1646613064898,0.23231002,38545.0,38534.0,0.0003841]
[1646613065097,0.0525,38549.0,38534.0,0.0003841]
[1646613065098,0.21802986,38538.0,38534.0,0.0003841]
[1646613066300,0.21922376,38537.0,38534.0,0.0003841]
[1646613067452,0.51991778,38537.0,38534.0,0.0003841]
[1646613067657,0.34859402,38536.0,38534.0,0.0003841]
[1646613067853,0.0479,38536.0,38534.0,0.0003841]
[1646613068755,0.44069402,38535.0,38534.0,0.0003841]
[1646613068954,0.1879,38535.0,38534.0,0.0003841]
[1646613069156,0.04815986,38535.0,38534.0,0.0003841]
[1646613070054,0.04815986,38535.0,38534.0,0.00018886]